Cogmind - Beta 11 X11 @@@ ROGUE MODE // 2022.03.03 @ 17:21:36 Player: AI52487963 Result: Destroyed by G-34 Mercenary with Small Laser Performance ------------- Evolutions (1) 500 Regions Visited (3) 600 Robots Destroyed (36) 180 Value Destroyed (691) 691 Prototype IDs (0) 0 Alien Tech Used (0) 0 Bonus (2) 2 TOTAL SCORE: 1973 Bonus ------- High Alert Combat Kills 2 Cogmind --------- Core Integrity 0/400 Matter 290/300 Energy 100/100 System Corruption 0% Temperature Cool (6) Movement Flying (120) Ox1 Location -9/Materials Parts ------- > --- POWER (1) -------- (None) > --- PROPULSION (2) --- Flight Unit > --- UTILITY (4) ------ Small Storage Unit Signal Interpreter > --- WEAPON (2) ------- (None) > --- INVENTORY (8) ---- Ion Engine Ion Engine Aluminum Leg Wheel Wheel Compact Wheel Medium Laser Mace Peak State ------------ > --- POWER ------------ Light Nuclear Core > --- PROPULSION ------- Compact Wheel Compact Wheel > --- UTILITY ---------- Small Storage Unit Huge Storage Unit > --- WEAPON ----------- Light Cannon Improved Light Cannon > --- INVENTORY -------- Ion Engine Ion Engine Aluminum Leg Wheel Wheel Compact Wheel Signal Interpreter EM Pulse Gun Medium Laser Light Cannon [Rating: 11] Favorites ----------- Power Light Nuclear Core Engine Light Ion Engine Power Core Light Nuclear Core Propulsion Light Treads Treads Light Treads Wheel Compact Wheel Flight Unit Flight Unit Utility Small Storage Unit Storage Small Storage Unit Processor Signal Interpreter Weapon Light Cannon Energy Gun Medium Laser Ballistic Cannon Light Cannon Build | -11 -10 -10 -9 ------- Run | Scr Mat Min Mat Slots Evolved 2 | . . . 2 Power . | . . . . Propulsion . | . . . . Utility 2 | . . . 2 Weapon . | . . . . Parts Attached 28 | 6 8 5 9 Power 5 | 1 2 1 1 Engine 4 | 1 2 . 1 Core 1 | . . 1 . Reactor . | . . . . Propulsion 9 | 2 1 3 3 Treads 3 | 2 1 . . Leg . | . . . . Wheel 3 | . . 3 . Hover . | . . . . Flight 3 | . . . 3 Utility 4 | 1 1 1 1 Device . | . . . . Storage 3 | 1 1 1 . Processor 1 | . . . 1 Hackware . | . . . . Protection . | . . . . Artifact . | . . . . Weapon 10 | 2 4 . 4 Energy Gun 5 | 2 2 . 1 Energy Cannon . | . . . . Ballistic Gun . | . . . . Ballistic Cannon 5 | . 2 . 3 Launcher . | . . . . Special Weapon . | . . . . Impact Weapon . | . . . . Slashing Weapon . | . . . . Piercing Weapon . | . . . . Special Melee Weapon . | . . . . Unidentified Prototypes . | . . . . Parts Lost 11 | . 3 2 6 Power 2 | . 1 . 1 Propulsion 5 | . . 2 3 Utility . | . . . . Weapon 4 | . 2 . 2 Highest Loss Streak 2 | . 2 2 2 To Critical Strikes . | . . . . Average Slot Usage (%) 79 | . 80 87 68 Engine 6 | . 13 1 . Core 5 | . . 12 7 Treads 14 | . 28 1 . Wheel 9 | . . 23 14 Storage 16 | . 14 18 19 Processor 1 | . . . 8 Energy Gun 8 | . 17 . . Ballistic Cannon 14 | . 6 28 14 Naked Turns . | . . . . Heaviest Build 97 | 12 16 96 97 Greatest Support 40 | 40 40 40 32 Greatest Overweight (x) 5 | . . 2 5 Average Overweight (x) . | . . . 1 Largest Inventory Capacity 25 | 8 25 25 25 Average Capacity 12 | 7 8 14 20 Most Carried 10 | 5 8 9 10 Average Carried 6 | 1 4 7 8 Final Capacity 25 | 8 8 25 8 Final Carried 9 | 1 6 9 8 Class Distribution -------------------- 92% | Mutant 7% | Scavenger-Mutant Dominant Class ---------------- Mutant | -10/Materials Mutant | -10/Mines Mutant | -9/Materials Resources | -11 -10 -10 -9 ----------- Run | Scr Mat Min Mat Matter Collected 734 | 260 75 159 240 Remotely . | . . . . Salvage Created 1031 | 138 486 154 253 Parts 66 | 8 33 7 18 Haulers Intercepted 1 | . 1 . . Recyclers Shooed . | . . . . Parts Field Recycled . | . . . . Retrieved Matter . | . . . . Parts Self-Destructed . | . . . . Prevented . | . . . . Kills | -11 -10 -10 -9 ------- Run | Scr Mat Min Mat Combat Hostiles Destroyed 28 | . 15 2 11 Guns 15 | . 15 . . Cannons 13 | . . 2 11 Classes Destroyed 8 | 2 5 . 1 Tunneler 2 | 2 . . . Hauler 1 | . 1 . . Recycler 3 | 1 . 1 1 Operator 1 | . 1 . . Watcher 1 | . 1 . . Swarmer 16 | . 9 . 7 Grunt 11 | . 6 2 3 Sentry 1 | . . . 1 Best Kill Streak 4 | 2 3 2 4 Combat Bots Only 4 | . 3 2 4 Max Kills in Single Turn 2 | 2 1 1 1 Gunslinging . | . . . . Exploded . | . . . . Melee . | . . . . Uniques/NPCs Destroyed . | . . . . Combat | -11 -10 -10 -9 -------- Run | Scr Mat Min Mat Damage Taken 1769 | . 840 44 885 Core 519 | . 115 . 404 Absorbed by Shields . | . . . . Core Remaining (%) 77 | 100 . 54 . Volleys Fired 95 | 5 57 5 28 Largest 2 | 2 2 2 2 Hottest 100 | 80 100 70 79 Shots Fired 167 | 10 98 10 49 Gun 91 | 10 79 . 2 Cannon 76 | . 19 10 47 Launcher . | . . . . Special . | . . . . Kinetic 76 | . 19 10 47 Thermal 65 | . 65 . . Explosive . | . . . . Electromagnetic 26 | 10 14 . 2 Robot Hit Streak 9 | 4 9 4 5 Robot Miss Streak 10 | 1 10 4 3 Penetration Max . | . . . . Secondary Targets 1 | . 1 . . Max Gunslinging Chain 1 | . 1 . . Shots Hit Robots 83 | 7 46 5 25 Core Hits 47 | 3 27 4 13 Critical Kills . | . . . . Critical Parts Destroyed . | . . . . Critical Strikes 2 | . 1 . 1 Burn 1 | . 1 . . Blast 1 | . . . 1 Melee Attacks . | . . . . Impact . | . . . . Slashing . | . . . . Piercing . | . . . . Sneak Attacks . | . . . . Combat Hostiles . | . . . . Follow-up Attacks . | . . . . Damage Inflicted 1629 | 250 703 105 571 Guns 630 | 96 534 . . Cannons 767 | . 91 105 571 Explosions 229 | 154 75 . . Melee . | . . . . Ramming 3 | . 3 . . Kinetic 767 | . 91 105 571 Thermal 705 | 154 551 . . Explosive . | . . . . Electromagnetic 154 | 96 58 . . Impact . | . . . . Slashing . | . . . . Piercing . | . . . . Highest Corruption . | . . . . Average Corruption . | . . . . Corruption Purged . | . . . . Corruption Blocked . | . . . . Overload Shots . | . . . . Overflow Damage 19 | . 6 . 13 Projectiles 17 | . 4 . 13 Explosions 2 | . 2 . . Melee . | . . . . Knockbacks 12 | . 4 . 8 Impact . | . . . . Kinetic 12 | . 4 . 8 Secondary . | . . . . Self-Inflicted Damage 30 | . 30 . . Shots 1 | . 1 . . Rammed 1 | . 1 . . Targets Rammed 1 | . 1 . . Kicked . | . . . . Crushed . | . . . . Highest Temperature 219 | 54 219 72 123 Average Temperature 49 | 26 57 29 38 Received Heat Transfer 573 | . 156 45 372 Siege Activations . | . . . . Robots Corrupted . | . . . . Combat Hostiles . | . . . . Parts Fried . | . . . . Impact Corruptions . | . . . . Robots Melted . | . . . . Combat Hostiles . | . . . . Parts Melted 3 | . 3 . . Heat Transferred 1830 | 200 1630 . . Parts Sabotaged . | . . . . Parts Stolen . | . . . . Parts Stripped . | . . . . Power Chain Reactions 3 | 2 1 . . Missiles Intercepted . | . . . . Alert | -11 -10 -10 -9 ------- Run | Scr Mat Min Mat Peak Influence 422 | 15 422 191 354 Initial 126 | . 9 126 . Average 178 | 7 233 142 165 Maximum Alert Level 2 | . 2 . 1 Low Security (%) 60 | 100 31 100 58 Level 1 39 | . 67 . 41 Level 2 . | . 1 . . Level 3 . | . . . . Level 4 . | . . . . Level 5 . | . . . . High Security . | . . . . Max Security . | . . . . Squads Dispatched 6 | . 4 . 2 Investigation 4 | . 3 . 1 Extermination . | . . . . Reinforcement 2 | . 1 . 1 Assault . | . . . . Garrison . | . . . . Intercept . | . . . . Searches Triggered . | . . . . Construction Impeded . | . . . . Haulers Reinforced . | . . . . Active Scanning Responses . | . . . . Cargo Convoy Interrupts . | . . . . Stealth | -11 -10 -10 -9 --------- Run | Scr Mat Min Mat Distress Signals . | . . . . Communications Jammed . | . . . . Distress Signals . | . . . . Times Spotted 58 | . 28 4 26 Peak Tracking Total 8 | . 5 2 8 Tactical Retreats 3 | . 1 1 1 Traps | -11 -10 -10 -9 ------- Run | Scr Mat Min Mat Traps Triggered 3 | . 2 . 1 Indirectly . | . . . . Trap Hack Attempts . | . . . . Triggered . | . . . . Disarmed . | . . . . Reprogrammed . | . . . . Reused . | . . . . Traps Extracted . | . . . . Installed . | . . . . Triggered . | . . . . Machines | -11 -10 -10 -9 ---------- Run | Scr Mat Min Mat Machines Disabled 3 | . 3 . . Max in Single Turn 1 | . 1 . . Machines Sabotaged . | . . . . Garrisons Compromised . | . . . . Overloaded Fab Kills . | . . . . Hacking | -11 -10 -10 -9 --------- Run | Scr Mat Min Mat Machines Accessed 7 | . 5 . 2 Terminals 7 | . 5 . 2 Fabricators . | . . . . Repair Stations . | . . . . Recycling Units . | . . . . Scanalyzers . | . . . . Garrison Access . | . . . . Total Hacks 17 | . 10 . 7 Successful 2 | . 1 . 1 Failed 15 | . 9 . 6 Catastrophic 6 | . 5 . 1 Database Lockouts . | . . . . Manual 13 | . 6 . 7 Terminals 17 | . 10 . 7 Fabricators . | . . . . Repair Stations . | . . . . Recycling Units . | . . . . Scanalyzers . | . . . . Garrison Access . | . . . . Terminal Hacks 2 | . 1 . 1 Branch Access Points 2 | . 1 . 1 Fabricator Hacks . | . . . . Repair Station Hacks . | . . . . Recycling Unit Hacks . | . . . . Scanalyzer . | . . . . Garrison Access Hacks . | . . . . Unauthorized Hacks . | . . . . Terminals . | . . . . Fabricators . | . . . . Repair Stations . | . . . . Recycling Units . | . . . . Scanalyzers . | . . . . Garrison Access . | . . . . Data Cores Recovered . | . . . . Used . | . . . . Hacking Detections 6 | . 4 . 2 Full Trace Events 4 | . 3 . 1 Feedback Events . | . . . . Feedback Blocked . | . . . . Robot Schematics Acquired . | . . . . Robots Built . | . . . . Authchips . | . . . . Time . | . . . . Total Robot Build Rating . | . . . . Part Schematics Acquired . | . . . . Parts Built . | . . . . Authchips . | . . . . Time . | . . . . Total Part Build Rating . | . . . . Parts Repaired . | . . . . Time . | . . . . Parts Recycled . | . . . . Recycled Matter . | . . . . Retrieved Matter . | . . . . Retrieved Components . | . . . . Parts Scanalyzed . | . . . . Part Schematics Acquired . | . . . . Parts Damaged . | . . . . Bothacking | -11 -10 -10 -9 ------------ Run | Scr Mat Min Mat Used RIF Installer . | . . . . Robots Hacked . | . . . . Non-combat . | . . . . Combat . | . . . . Robot Hacks Applied . | . . . . Relay Couplers Released . | . . . . Fabnet Peak Effective % . | . . . . Robots Rewired . | . . . . Allies Hacked . | . . . . Hacks Repelled . | . . . . Allies | -11 -10 -10 -9 -------- Run | Scr Mat Min Mat Total Allies . | . . . . Largest Group . | . . . . Highest-Rated Group . | . . . . Highest-Rated Ally . | . . . . Total Orders . | . . . . Ally Attacks . | . . . . Total Damage . | . . . . Kills . | . . . . Allies Corrupted . | . . . . Allies Melted . | . . . . Intel | -11 -10 -10 -9 ------- Run | Scr Mat Min Mat Robot Analysis Total . | . . . . Derelict Logs Recovered 1 | . . 1 . Drone Launches . | . . . . Drone Recoveries . | . . . . Exploration | -11 -10 -10 -9 ------------- Run | Scr Mat Min Mat Turns Passed 1735 | 129 774 451 381 Spaces Moved 1096 | 75 366 358 297 Core 21 | 16 . . 5 Treads 428 | 59 366 3 . Legs . | . . . . Wheels 479 | . . 355 124 Hover . | . . . . Flight 168 | . . . 168 Fastest Speed 37 | 50 160 95 37 Average Speed 124 | 136 160 109 93 Slowest Speed 175 | 160 160 160 175 Overloaded Moves . | . . . . Propulsion Burnouts . | . . . . Robots Hopped 2 | . . . 2 Cave-ins Triggered . | . . . . Exploration Rate (%) 43 | 5 67 74 29 Regions Visited 3 Branch Regions 1 Pre-discovered Areas 1 | . . 1 . Known Exits Taken 1 | . 1 . . Unknown Exits Taken 2 | 1 . 1 . Scrap Searched 2 | . . 2 . Spaces Dug . | . . . . Terrain Destroyed 6 | 4 2 . . Melee . | . . . . Projectile . | . . . . AOE 6 | 4 2 . . Terrain Rammed . | . . . . Walls Destroyed . | . . . . Machines Disabled . | . . . . Actions | -11 -10 -10 -9 --------- Run | Scr Mat Min Mat Total 1302 | 92 457 404 349 Wait 46 | . 6 32 8 Move 1089 | 74 365 357 293 Hop 2 | . . . 2 Pick Up 29 | 7 13 5 4 Fast Attach 3 | . 1 1 1 Attach 17 | 6 3 2 6 Detach 1 | . . . 1 Swap 8 | . 4 2 2 Drop 11 | . 7 . 4 Fire 95 | 5 57 5 28 Melee . | . . . . Ram . | . . . . Kick . | . . . . Crush 1 | . 1 . . Escape Stasis . | . . . . Rewire . | . . . . Trap . | . . . . Miscellaneous . | . . . . Route ------- -11/Scrapyard -10/Materials (discovered 2 exits: *Mat / *Min) -10/Mines (discovered 2 exits: *Mat x2) -9/Materials (discovered 3 exits: Mat / Min / Sto) History --------- Turn | Location | Event 9 | -11/Scrapyard | Discovered new exit (range 16) 130 | -11/Scrapyard | Entered Materials 309 | -10/Materials | Build established: Mutant 321 | -10/Materials | Discovered new exit (range 8) 416 | -10/Materials | Discovered new exit (range 13) 709 | -10/Materials | Identified exit to Mines 904 | -10/Materials | Entered Mines 1043 | -10/Mines | Discovered new exit (range 15) 1273 | -10/Mines | Learned location of 1 exit from Materials 1334 | -10/Mines | Discovered new exit (range 12) 1347 | -10/Mines | Learned location of Storage (-9) 1355 | -10/Mines | Entered Materials 1355 | -9/Materials | Evolved 2 slots: Utility x2 1356 | -9/Materials | Identified exit to Materials 1677 | -9/Materials | Identified exit to Mines 1677 | -9/Materials | Identified exit to Storage 1680 | -9/Materials | Core integrity fell below 50% 1717 | -9/Materials | Core integrity fell below 20% 1736 | -9/Materials | Destroyed by G-34 Mercenary with Small Laser Last Messages --------------- Connecting with Terminal... >>Access(Branch) Found 2 branch access points: (49,50) Mines (23,27) Storage Map updated. Acquired Mace. K-01 Serf cleans the Matter Pump. R-06 Scavenger inserts Flight Unit into recycling unit. R-06 Scavenger inserts Lgt. Ion Engine into recycling unit. Recycling unit begins recycling process. Flight Unit destroyed. R-06 Scavenger inserts Imp. Ion Engine into recycling unit. K-01 Serf cleans the Fusion Modulator. G-34 Mercenary suffers critical hit (Burn). K-01 Serf cleans the Fusion Modulator. Flight Unit destroyed. K-01 Serf cleans the Fusion Modulator. Acquired Flight Unit. K-01 Serf cleans the Processing Tank. Map ----- +----------------------------------------------------+ | ???????????????????????????????????# = # # | | ???????????????????????????????????# # # | | ???????????????????????????????????# "= # | | ???????????????????????????????????# #* === # | | ???????????????????????????????????# # == # | | ???????????????????????????????????# # == # | | ??????????????????????????########## # # | | ??????????????????????????# # ########### | | ??????????????????????????# """ # #?????????? | | ??????????????????????????# """ # #?????????? | | ??????????????????????????# """ # #?????????? | | ??????????????????????????# # ########### | | ??????????????????????????# """ !# # # | | ????????????????"""???????# """ # # # | | ????????????????? ??????# """ # # # | | ????????????????? ??????# # # """ ""??? | | ?????????????????""k ?????######+### %+ """ ""??? | | ?????????????????"" ???????# k % #=""" ""??? | | ????????????????""" t ??????# # ?? | | ????????????## """ ####### % # = ?? | | ???????????? """ % ####+###########? | | >?????????? # #??????? | | ?????????????? # !! #??????? | | ?????????????????k # !! #??????? | | ??????????????????###a ! """ # #??????? | | ????????????????????# @ "" # #??????? | | ????????????????????# u """ # " """ #??????? | | ????????????????????# # T """ ##?????? | | ????????????????????#k k # " """ #?????? | | ????????????????????# """g # ##?????? | | ????????????????????# """gg###/######??????? | | ????????????????????# """ #?# #???????????? | | ????????????????????# g #?#*#?########### | | ????????????????????#k #?#[#?# # | | ????????????????##### """% #?# #?# # | | #####???????????# # """ ###%### ] # | | #???????????# # Y g"""% =! # !! ] # | | ""#????######## # %%! + !! # | | [ T"#????# ### ## ] %# # | | ""###### r """ ##+#### # | | + """ # ?# [# | | ! # """ # ############ | | # "" # #??????????? | | # "Y # #??????????? | | ##### "" """ """ """ # #??????????? | | #### """ """ """ # #??????????? | | """ """ """ # #??????????? | | # #??????????? | | # #??????????? | | ############## ######+###/###??????????? | +----------------------------------------------------+ Best States ------------- Heat Dissipation 28 Energy Generation 14 Energy Capacity 250 Matter Stores 300 Matter Capacity 300 Sight Range 16 Terrain Scan Density 10 Evasion (%) 62 Recoil Reduction 2 Item Schematics ----------------- None Robot Schematics ------------------ None Fabricated ------------ Nothing Alien Tech Used ----------------- None Achievements -------------- None Challenges ------------ None Game ------ Seed ReinforcedMeleeProtomatter Manual? 0 Play Time 00:23:53 Cumulative 49.5 hours Start 2022.03.03 @ 16:58:36 End 2022.03.03 @ 17:21:36 Sessions 1 Manual Loads 0 Difficulty Rogue Special Mode None Game No. 14 Rogue 2 Adventurer 0 Explorer 12 Win Type - Total 2 Types 1/0/1/0/0/0/0/0/0 Lore% 37 Gallery% 38 Achievement% 42 Wizard Run 0 Options --------- ASCII 0 Keyboard 0 Movement Mouse Keybinds 0 Fullscreen 1 Font 24/Smallcaps Map View 76x50 Tactical HUD 0 Map Filters NONE Filters NONE Steam 1 RUN: ca6b8f7a-8a88-4604-bb22-b3d93dc1ff8c